fUSD/lending_fUSD_20250905
["ID","MTS","AMOUNT","RATE_DAILY","PERIOD"]
[383674074,1757080272094,-400.0,0.00026575,2]
[383674075,1757080272105,-400.0,0.00026575,2]
[383674076,1757080272114,-400.0,0.00026575,2]
[383674077,1757080272124,-400.0,0.00026575,2]
[383674078,1757080272134,-400.0,0.00026575,2]
[383674079,1757080272143,-481.02,0.00026575,2]
[383674080,1757080272153,-400.0,0.00026575,2]
[383674081,1757080272162,-293.82,0.00026575,2]
[383674082,1757080272172,-400.0,0.00026575,2]
[383674083,1757080272182,-304.69,0.00026575,2]
[383674084,1757080272191,-400.0,0.00026575,2]
[383674085,1757080272201,-400.0,0.00026575,2]
[383674086,1757080272211,-400.0,0.00026575,2]
[383674087,1757080272220,-317.10119148,0.00026575,2]
[383674088,1757080272230,-383.4,0.00026575,2]
[383674089,1757080272240,-400.0,0.00026575,2]
[383674090,1757080272250,-400.0,0.00026575,2]
[383674091,1757080272260,-201.31,0.00026575,2]
[383674092,1757080272270,-400.0,0.00026575,2]
[383674093,1757080272279,-287.57843775,0.00026575,2]
[383674094,1757080272291,-400.0,0.00026575,2]
[383674095,1757080272302,-533.63,0.00026575,2]
[383674096,1757080272312,-274.43143856,0.00026575,2]
[383674097,1757080272322,-226.91157412,0.00026575,2]
[383674098,1757080272331,-300.0,0.00026575,2]
[383674099,1757080272341,-638.3,0.00026575,2]
[383674100,1757080272351,-1880.91,0.00026575,2]
[383674101,1757080272361,-266.92500472,0.00026575,2]
[383674102,1757080272371,-400.0,0.00026575,2]
[383674103,1757080272381,-400.0,0.00026575,2]
[383674104,1757080272390,-400.0,0.00026575,2]
[383674105,1757080272400,-400.0,0.00026575,2]
[383674106,1757080272410,-400.0,0.00026575,2]
[383674107,1757080272420,-474.69,0.00026575,2]
[383674108,1757080272429,-400.0,0.00026575,2]
[383674109,1757080272439,-473.87,0.00026575,2]
[383674110,1757080272448,-400.0,0.00026575,2]
[383674111,1757080272458,-510.36,0.00026575,2]
[383674112,1757080272467,-415.61,0.00026575,2]
[383674113,1757080272477,-400.0,0.00026575,2]
[383674114,1757080272491,-404.52,0.00026575,2]
[383674115,1757080272501,-400.0,0.00026575,2]
[383674116,1757080272510,-338.73773672,0.00026575,2]
[383674117,1757080272520,-400.0,0.00026575,2]
[383674118,1757080272530,-344.67665488,0.00026575,2]
[383674119,1757080272541,-400.0,0.00026575,2]
[383674120,1757080272551,-1096.06,0.00026575,2]
[383674121,1757080272561,-400.0,0.00026575,2]
[383674122,1757080272570,-400.0,0.00026575,2]
[383674123,1757080272581,-400.0,0.00026575,2]
[383674124,1757080272591,-400.0,0.00026575,2]
[383674125,1757080272601,-816.55,0.00026575,2]
[383674126,1757080272611,-388.70400304,0.00026588,2]
[383674127,1757080272621,-437.02631174,0.0002659,2]
[383674128,1757080272631,-34651.36,0.000266,2]
[383674129,1757080272641,-1500.0,0.00026616,2]
[383674130,1757080272650,-2000.0,0.00026616,2]
[383674131,1757080272660,-1332.69,0.00026643,2]
[383674132,1757080272670,-400.0,0.00026643,2]
[383674133,1757080272680,-716.83,0.00026643,2]
[383674134,1757080272691,-400.0,0.00026643,2]
[383674135,1757080272701,-3437.21,0.00026643,2]
[383674136,1757080272710,-400.0,0.00026643,2]
[383674137,1757080272720,-400.0,0.00026643,2]
[383674138,1757080272730,-152.0,0.00026682,4]
[383674139,1757080272740,-168.0,0.00026697,2]
[383674140,1757080272750,-425.55,0.00026748,2]
[383674141,1757080272759,-2516.71,0.00026748,2]
[383674142,1757080272769,-400.0,0.00026748,2]
[383674143,1757080272779,-400.0,0.00026748,2]
[383674144,1757080272788,-214.9,0.00026748,2]
[383674145,1757080272799,-400.0,0.00026748,2]
[383674146,1757080272808,-400.0,0.00026748,2]
[383674147,1757080272818,-4574.52,0.00026748,2]
[383674148,1757080272827,-528.19,0.00026748,2]
[383674149,1757080272837,-1398.32,0.00026748,2]
[383674150,1757080272847,-850.97,0.00026748,2]
[383674151,1757080272856,-400.0,0.00026748,2]
[383674152,1757080272866,-400.0,0.00026748,2]
[383674153,1757080272875,-400.0,0.00026748,2]
[383674154,1757080272885,-400.0,0.00026748,2]
[383674155,1757080272895,-157.21794,0.00026748,2]
[383674156,1757080272904,-606.33,0.00026748,2]
[383674157,1757080272914,-377.19,0.00026748,2]
[383674158,1757080272923,-213.0,0.0002676,2]
[383674159,1757080272933,-214.0,0.0002676,2]
[383674160,1757080272943,-206.0,0.0002676,2]
[383674161,1757080272954,-500.0,0.00026771,2]
[383674162,1757080272964,-200.0,0.00026771,2]
[383674163,1757080272974,-200.0,0.00026771,2]
[383674164,1757080272983,-200.0,0.00026771,2]
[383674165,1757080272994,-200.0,0.00026771,2]
[383674166,1757080273003,-200.0,0.00026771,2]
[383674167,1757080273013,-200.0,0.00026771,2]
[383674168,1757080273023,-200.0,0.00026771,2]
[383674169,1757080273033,-200.0,0.00026771,2]
[383674170,1757080273044,-200.0,0.00026771,2]
[383674171,1757080273054,-200.0,0.00026771,2]
[383674172,1757080273064,-200.0,0.00026771,2]
[383674173,1757080273073,-200.0,0.00026771,2]
[383674174,1757080273082,-200.0,0.00026771,2]
[383674175,1757080273092,-200.0,0.00026771,2]
[383674176,1757080273102,-200.0,0.00026771,2]
[383674177,1757080273112,-200.0,0.00026771,2]
[383674178,1757080273122,-200.0,0.00026771,2]
[383674179,1757080273131,-200.0,0.00026771,2]
[383674180,1757080273140,-200.0,0.00026771,2]
[383674181,1757080273150,-200.0,0.00026771,2]
[383674182,1757080273159,-200.0,0.00026771,2]
[383674183,1757080273168,-200.0,0.00026771,2]
[383674184,1757080273177,-200.0,0.00026771,2]
[383674185,1757080273187,-200.0,0.00026771,2]
[383674186,1757080273196,-200.0,0.00026771,2]
[383674187,1757080273206,-200.0,0.00026771,2]
[383674188,1757080273216,-200.0,0.00026771,2]
[383674189,1757080273227,-200.0,0.00026771,2]
[383674190,1757080273237,-200.0,0.00026771,2]
[383674191,1757080273246,-200.0,0.00026771,2]
[383674192,1757080273255,-200.0,0.00026771,2]
[383674193,1757080273263,-200.0,0.00026771,2]
[383674194,1757080273274,-200.0,0.00026771,2]
[383674195,1757080273283,-200.0,0.00026771,2]
[383674196,1757080273295,-218.0,0.00026771,2]
[383674197,1757080273305,-200.0,0.00026771,2]
[383674198,1757080273316,-400.0,0.00026804,2]
[383674199,1757080273326,-327.04621538,0.00026805,2]
[383674200,1757080273336,-400.0,0.00026805,2]
[383674201,1757080273345,-187.65,0.00026805,2]
[383674202,1757080273355,-400.0,0.00026805,2]
[383674203,1757080273364,-548.1,0.00026805,2]
[383674204,1757080273375,-864.95,0.00026805,2]
[383674205,1757080273385,-403.99206498,0.00026805,2]
[383674206,1757080273395,-400.0,0.00026805,2]
[383674207,1757080273405,-400.0,0.00026805,2]
[383674208,1757080273415,-400.0,0.00026805,2]
[383674209,1757080273426,-400.0,0.00026805,2]
[383674210,1757080273436,-304.7,0.00026805,2]
[383674211,1757080273446,-618.59,0.00026805,2]
[383674212,1757080273456,-400.0,0.00026805,2]
[383674213,1757080273466,-435.11,0.00026805,2]
[383674214,1757080273476,-400.0,0.00026805,2]
[383674215,1757080273489,-400.0,0.00026805,2]
[383674216,1757080273498,-186.57364427,0.00026805,2]
[383674217,1757080273508,-500.0,0.00026815,2]
[383674218,1757080273519,-235.53272,0.00026847,2]
[383674219,1757080273529,-150.868106,0.00026847,2]
[383674220,1757080273541,-400.0,0.00026847,2]
[383674221,1757080273551,-1177.68,0.00026847,2]
[383674222,1757080273562,-2245.68,0.00026847,2]
[383674223,1757080273572,-557.5,0.00026847,2]
[383674224,1757080273582,-400.0,0.00026847,2]
[383674225,1757080273591,-1291.11,0.00026847,2]
[383674226,1757080273601,-400.0,0.00026847,2]
[383674227,1757080273610,-400.0,0.00026847,2]
[383674228,1757080273621,-438.15735813,0.00026847,2]
[383674229,1757080273631,-400.0,0.00026847,2]
[383674230,1757080273641,-350.47599572,0.00026847,2]
[383674231,1757080273650,-400.0,0.00026847,2]
[383674232,1757080273660,-400.0,0.00026847,2]
[383674233,1757080273670,-400.0,0.00026848,2]
[383674234,1757080273679,-400.0,0.00026848,2]
[383674235,1757080273689,-400.0,0.00026848,2]
[383674236,1757080273699,-400.0,0.00026848,2]
[383674237,1757080273711,-400.0,0.00026848,2]
[383674238,1757080273721,-400.0,0.00026848,2]
[383674239,1757080273731,-400.0,0.00026848,2]
[383674240,1757080273744,-400.0,0.00026848,2]
[383674241,1757080273754,-400.0,0.00026848,2]
[383674242,1757080273764,-387.02831073,0.00026848,2]
[383674243,1757080273774,-400.0,0.00026848,2]
[383674244,1757080273784,-400.0,0.00026848,2]
[383674245,1757080273793,-400.0,0.00026848,2]
[383674246,1757080273803,-400.0,0.00026848,2]
[383674247,1757080273814,-400.0,0.00026848,2]
[383674248,1757080273824,-400.0,0.00026848,2]
[383674249,1757080273835,-400.0,0.00026848,2]
[383674250,1757080273850,-400.0,0.00026848,2]
[383674251,1757080273862,-400.0,0.00026848,2]
[383674252,1757080273872,-400.0,0.00026848,2]
[383674253,1757080273882,-490.91,0.00026848,2]
[383674254,1757080273892,-400.0,0.00026848,2]
[383674255,1757080273901,-276.34,0.00026848,2]
[383674256,1757080273912,-400.0,0.00026848,2]
[383674257,1757080273922,-239.77,0.00026848,2]
[383674258,1757080273932,-400.0,0.00026848,2]
[383674259,1757080273943,-151.7,0.00026848,2]
[383674260,1757080273953,-400.0,0.00026848,2]
[383674261,1757080273965,-400.0,0.00026848,2]
[383674262,1757080273978,-400.7,0.00026848,2]
[383674263,1757080273993,-400.0,0.00026848,2]
[383674264,1757080274003,-459.99,0.00026848,2]
[383674265,1757080274013,-400.0,0.00026848,2]
[383674266,1757080274023,-400.0,0.00026848,2]
[383674267,1757080274033,-491.06,0.00026848,2]
[383674268,1757080274043,-400.0,0.00026848,2]
[383674269,1757080274200,-400.0,0.00026848,2]
[383674270,1757080274211,-400.0,0.00026848,2]
[383674271,1757080274221,-691.23,0.00026848,2]
[383674272,1757080274231,-1702.49,0.00026848,2]
[383674273,1757080274241,-400.0,0.00026848,2]
[383674274,1757080274251,-400.0,0.00026848,2]
[383674275,1757080274260,-400.0,0.00026848,2]
[383674276,1757080274271,-1927.13,0.00026848,2]
[383674277,1757080274280,-400.0,0.00026848,2]
[383674278,1757080274292,-400.0,0.00026848,2]
[383674279,1757080274303,-400.0,0.00026848,2]
[383674280,1757080274312,-413.14,0.00026848,2]
[383674281,1757080274321,-400.0,0.00026848,2]
[383674282,1757080274331,-400.0,0.00026848,2]
[383674283,1757080274341,-400.0,0.00026848,2]
[383674284,1757080274350,-400.0,0.00026848,2]
[383674285,1757080274359,-400.0,0.00026848,2]
[383674286,1757080274369,-400.0,0.00026848,2]
[383674287,1757080274379,-400.0,0.00026848,2]
[383674288,1757080274389,-400.0,0.00026848,2]
[383674289,1757080274399,-835.85,0.00026848,2]
[383674290,1757080274409,-190.69561239,0.00026848,2]
[383674291,1757080274419,-400.0,0.00026848,2]
[383674292,1757080274429,-400.0,0.00026848,2]
[383674293,1757080274439,-307.6,0.00026848,2]
[383674294,1757080274448,-400.0,0.00026848,2]
[383674295,1757080274458,-400.0,0.00026848,2]
[383674296,1757080274468,-400.0,0.00026848,2]
[383674297,1757080274477,-1036.34,0.00026848,2]
[383674298,1757080274491,-733.05,0.00026848,2]
[383674299,1757080274501,-400.0,0.00026848,2]
[383674300,1757080274512,-1500.11,0.00026848,2]
[383674301,1757080274521,-400.0,0.00026848,2]
[383674302,1757080274531,-333.64660745,0.00026848,2]
[383674303,1757080274540,-956.58,0.00026848,2]
[383674304,1757080274550,-400.0,0.00026848,2]
[383674305,1757080274559,-400.0,0.00026848,2]
[383674306,1757080274569,-400.0,0.00026848,2]
[383674307,1757080274578,-400.0,0.00026848,2]
[383674308,1757080274588,-400.0,0.00026848,2]
[383674309,1757080274598,-400.0,0.00026848,2]
[383674310,1757080274608,-400.0,0.00026848,2]
[383674311,1757080274617,-400.0,0.00026848,2]
[383674312,1757080274627,-400.0,0.00026848,2]
[383674313,1757080274636,-400.0,0.00026848,2]
[383674314,1757080274646,-400.0,0.00026848,2]
[383674315,1757080274656,-400.0,0.00026848,2]
[383674316,1757080274666,-400.0,0.00026848,2]
[383674317,1757080274675,-412.72014736,0.00026848,2]
[383674318,1757080274685,-400.0,0.00026848,2]
[383674319,1757080274694,-463.62,0.00026848,2]
[383674320,1757080274703,-820.22,0.00026848,2]
[383674321,1757080274713,-400.0,0.00026848,2]
[383674322,1757080274723,-400.0,0.00026848,2]
[383674323,1757080274733,-400.0,0.00026848,2]
[383674324,1757080274743,-1070.14,0.00026848,2]
[383674325,1757080274752,-407.15,0.00026848,2]
[383674326,1757080274762,-400.0,0.00026848,2]
[383674327,1757080274771,-1861.07,0.00026848,2]
[383674328,1757080274781,-400.0,0.00026848,2]
[383674329,1757080274791,-400.0,0.00026848,2]
[383674330,1757080274801,-400.0,0.00026848,2]
[383674331,1757080274810,-279.06659868,0.00026849,2]
[383674332,1757080274820,-241.1460463,0.00026849,2]
[383674333,1757080274830,-400.0,0.00026849,2]
[383674334,1757080274839,-400.0,0.00026849,2]
[383674335,1757080274849,-400.0,0.00026849,2]
[383674336,1757080274860,-400.0,0.00026849,2]
[383674337,1757080274869,-400.0,0.00026849,2]
[383674338,1757080274879,-400.0,0.00026849,2]
[383674339,1757080274888,-518.59,0.00026849,2]
[383674340,1757080274898,-400.0,0.00026849,2]
[383674341,1757080274908,-400.0,0.00026849,2]
[383674342,1757080274917,-400.0,0.00026849,2]
[383674343,1757080274927,-298.97827049,0.00026849,2]
[383674344,1757080274939,-387.20016621,0.00026849,2]
[383674345,1757080274948,-400.0,0.00026849,2]
[383674346,1757080274958,-400.0,0.00026849,2]
[383674347,1757080274970,-252.52611315,0.00026849,2]
[383674348,1757080274984,-400.0,0.00026849,2]
[383674349,1757080274994,-400.0,0.00026849,2]
[383674350,1757080275003,-400.0,0.00026849,2]
[383674351,1757080275014,-511.38068056,0.00026849,2]
[383674352,1757080275024,-400.0,0.00026849,2]
[383674353,1757080275033,-400.0,0.00026849,2]
[383674354,1757080275044,-400.0,0.00026849,2]
[383674355,1757080275054,-455.55,0.00026849,2]
[383674356,1757080275063,-400.0,0.00026849,2]
[383674357,1757080275073,-778.08,0.00026849,2]
[383674358,1757080275082,-400.0,0.00026849,2]
[383674359,1757080275092,-400.0,0.00026849,2]
[383674360,1757080275102,-400.0,0.00026849,2]
[383674361,1757080275111,-400.0,0.00026849,2]
[383674362,1757080275121,-400.0,0.00026849,2]
[383674363,1757080275131,-181.08913461,0.00026849,2]
[383674364,1757080275140,-400.0,0.00026849,2]
[383674365,1757080275150,-400.0,0.00026849,2]
[383674366,1757080275160,-481.02,0.00026849,2]
[383674367,1757080275169,-400.0,0.00026849,2]
[383674368,1757080275179,-400.0,0.00026849,2]
[383674369,1757080275188,-400.0,0.00026849,2]
[383674370,1757080275198,-400.0,0.00026849,2]
[383674371,1757080275208,-400.0,0.00026849,2]
[383674372,1757080275217,-517.93794486,0.00026849,2]
[383674373,1757080275227,-400.0,0.00026849,2]
[383674374,1757080275236,-400.0,0.00026849,2]
[383674375,1757080275246,-400.0,0.00026849,2]
[383674376,1757080275255,-533.63,0.00026849,2]
[383674377,1757080275265,-638.3,0.00026849,2]
[383674378,1757080275274,-1880.91,0.00026849,2]
[383674379,1757080275284,-400.0,0.00026849,2]
[383674380,1757080275293,-277.40719072,0.00026849,2]
[383674381,1757080275303,-400.0,0.00026849,2]
[383674382,1757080275312,-400.0,0.00026849,2]
[383674383,1757080275323,-477.98,0.00026849,2]
[383674384,1757080275335,-484.59,0.00026849,2]
[383674385,1757080275344,-400.0,0.00026849,2]
[383674386,1757080275354,-510.36,0.00026849,2]
[383674387,1757080275363,-415.61,0.00026849,2]
[383674388,1757080275373,-292.61090188,0.00026849,2]
[383674389,1757080275383,-404.52,0.00026849,2]
[383674390,1757080275392,-172.98321167,0.00026849,2]
[383674391,1757080275402,-400.0,0.00026849,2]
[383674392,1757080275412,-400.0,0.00026849,2]
[383674393,1757080275422,-1096.06,0.00026849,2]
[383674394,1757080275431,-152.45186264,0.00026849,2]
[383674395,1757080275440,-400.0,0.00026849,2]
[383674396,1757080275451,-220.1,0.00026849,2]
[383674397,1757080275462,-400.0,0.00026849,2]
[383674398,1757080275471,-400.0,0.00026849,2]
[383674399,1757080275483,-400.0,0.00026849,2]
[383674400,1757080275493,-400.0,0.00026849,2]
[383674401,1757080275503,-400.0,0.00026849,2]
[383674402,1757080275516,-400.0,0.00026849,2]
[383674403,1757080275527,-400.0,0.00026849,2]
[383674404,1757080275536,-400.0,0.00026849,2]
[383674405,1757080275546,-152.05995887,0.00026849,2]
[383674406,1757080275557,-816.55,0.00026849,2]
[383674407,1757080275567,-15512.75242784,0.0002687,2]
[383674408,1757080275576,-1332.69,0.00026917,2]
[383674409,1757080275586,-400.0,0.00026917,2]
[383674410,1757080275596,-716.83,0.00026917,2]
[383674411,1757080275607,-382.31682428,0.00026917,2]
[383674412,1757080275617,-3437.21,0.00026917,2]
[383674413,1757080275627,-400.0,0.00026917,2]
[383674414,1757080275638,-13543.64390397,0.00026957,2]
[383674415,1757080275648,-5479.16953803,0.00026959,6]
[383674416,1757080275658,-291.09932,0.0002698,2]
[383674417,1757080275668,-500.0,0.00026999,2]
[383674418,1757080275678,-2512.26,0.00027,7]
[383674419,1757080275688,-2512.46,0.00027,7]
[383674420,1757080275698,-1455.44,0.00027,7]
[383674421,1757080275708,-443.63,0.00027,7]
[383674422,1757080275718,-4406.9,0.00027,7]
[383674423,1757080275728,-824.85,0.00027,7]
[383674424,1757080275737,-2299.99999607,0.00027,5]
[383674425,1757080275747,-100000.0,0.00027,23]
[383674426,1757080275758,-77022.75,0.00027,7]
[383674427,1757080275767,-2909.62,0.00027,7]
[383674428,1757080275777,-4193.05,0.00027,7]
[383674429,1757080275787,-353.26,0.00027,7]
[383674430,1757080275798,-353.45,0.00027,7]
[383674431,1757080275808,-871.48886874,0.00027008,2]
[383674432,1757080275817,-400.0,0.00027022,2]
[383674433,1757080275827,-425.55,0.00027022,2]
[383674434,1757080275837,-2516.71,0.00027022,2]
[383674435,1757080275846,-400.0,0.00027022,2]
[383674436,1757080275856,-400.0,0.00027022,2]
[383674437,1757080275866,-400.0,0.00027022,2]
[383674438,1757080275876,-400.0,0.00027022,2]
[383674439,1757080275887,-4574.52,0.00027022,2]
[383674440,1757080275896,-528.19,0.00027022,2]
[383674441,1757080275906,-1398.32,0.00027022,2]
[383674442,1757080275916,-850.97,0.00027022,2]
[383674443,1757080275926,-400.0,0.00027022,2]
[383674444,1757080275935,-515.2,0.00027022,2]
[383674445,1757080275945,-400.0,0.00027022,2]
[383674446,1757080275955,-400.0,0.00027022,2]
[383674447,1757080275964,-157.21794,0.00027022,2]
[383674448,1757080275974,-606.33,0.00027022,2]
[383674449,1757080275983,-400.0,0.00027078,2]
[383674450,1757080275993,-492.82,0.00027079,2]
[383674451,1757080276003,-222.32456029,0.00027079,2]
[383674452,1757080276013,-548.1,0.00027079,2]
[383674453,1757080276023,-864.95,0.00027079,2]
[383674454,1757080276032,-470.2,0.00027079,2]
[383674455,1757080276043,-400.0,0.00027079,2]
[383674456,1757080276053,-400.0,0.00027079,2]
[383674457,1757080276063,-618.59,0.00027079,2]
[383674458,1757080276073,-400.0,0.00027079,2]
[383674459,1757080276083,-435.11,0.00027079,2]
[383674460,1757080276093,-400.0,0.00027079,2]
[383674461,1757080276103,-400.0,0.00027079,2]
[383674462,1757080276113,-500.0,0.00027089,2]
[383674463,1757080276123,-3416.09,0.000271,7]
[383674464,1757080276133,-673.32,0.000271,2]
[383674465,1757080276143,-500.0,0.00027104,2]
[383674466,1757080276152,-2300.0,0.00027104,2]
[383674467,1757080276162,-800.0,0.00027104,2]
[383674468,1757080276171,-151.0,0.00027109,2]
[383674469,1757080276182,-235.53272,0.00027121,2]
[383674470,1757080276191,-400.0,0.00027121,2]
[383674471,1757080276201,-150.868106,0.00027121,2]
[383674472,1757080276210,-1177.68,0.00027121,2]
[383674473,1757080276220,-2245.68,0.00027121,2]
[383674474,1757080276230,-557.5,0.00027121,2]
[383674475,1757080276239,-400.0,0.00027121,2]
[383674476,1757080276251,-1291.11,0.00027121,2]
[383674477,1757080276260,-400.0,0.00027121,2]
[383674478,1757080276273,-400.0,0.00027121,2]
[383674479,1757080276283,-400.0,0.00027121,2]
[383674480,1757080276293,-400.0,0.00027121,2]
[383674481,1757080276303,-400.0,0.00027121,2]
[383674482,1757080276313,-222.69607625,0.00027122,2]
[383674483,1757080276322,-400.0,0.00027122,2]
[383674484,1757080276540,-400.0,0.00027122,2]
[383674485,1757080276550,-400.0,0.00027122,2]
[383674486,1757080276560,-400.0,0.00027122,2]
[383674487,1757080276570,-400.0,0.00027122,2]
[383674488,1757080276580,-400.0,0.00027122,2]
[383674489,1757080276589,-400.0,0.00027122,2]
[383674490,1757080276598,-400.0,0.00027122,2]
[383674491,1757080276608,-300.03393262,0.00027122,2]
[383674492,1757080276617,-400.0,0.00027122,2]
[383674493,1757080276756,-400.0,0.00027122,2]
[383674494,1757080276766,-400.0,0.00027122,2]
[383674495,1757080276775,-367.03,0.00027122,2]
[383674496,1757080276786,-400.0,0.00027122,2]
[383674497,1757080276797,-400.0,0.00027122,2]
[383674498,1757080276806,-400.0,0.00027122,2]
[383674499,1757080276815,-400.0,0.00027122,2]
[383674500,1757080276824,-400.0,0.00027122,2]
[383674501,1757080276834,-176.22,0.00027122,2]
[383674502,1757080276844,-400.0,0.00027122,2]
[383674503,1757080276853,-400.0,0.00027122,2]
[383674504,1757080276863,-400.0,0.00027122,2]
[383674505,1757080276872,-400.0,0.00027122,2]
[383674506,1757080276881,-400.7,0.00027122,2]
[383674507,1757080276890,-400.0,0.00027122,2]
[383674508,1757080276900,-459.99,0.00027122,2]
[383674509,1757080276910,-474.61855416,0.00027122,2]
[383674510,1757080276920,-400.0,0.00027122,2]
[383674511,1757080276929,-491.06,0.00027122,2]
[383674512,1757080276939,-160.84,0.00027122,2]
[383674513,1757080276949,-188.50862833,0.00027122,2]
[383674514,1757080276959,-292.8,0.00027122,2]
[383674515,1757080276968,-691.23,0.00027122,2]
[383674516,1757080276978,-1702.49,0.00027122,2]
[383674517,1757080276987,-400.0,0.00027122,2]
[383674518,1757080276996,-400.0,0.00027122,2]
[383674519,1757080277005,-400.0,0.00027122,2]
[383674520,1757080277015,-1927.13,0.00027122,2]
[383674521,1757080277025,-400.0,0.00027122,2]
[383674522,1757080277034,-400.0,0.00027122,2]
[383674523,1757080277044,-400.0,0.00027122,2]
[383674524,1757080277055,-413.14,0.00027122,2]
[383674525,1757080277064,-400.0,0.00027122,2]
[383674526,1757080277074,-400.0,0.00027122,2]
[383674527,1757080277083,-400.0,0.00027122,2]
[383674528,1757080277092,-400.0,0.00027122,2]
[383674529,1757080277102,-469.75644642,0.00027122,2]
[383674530,1757080277111,-400.0,0.00027122,2]
[383674531,1757080277121,-400.0,0.00027122,2]
[383674532,1757080277131,-400.0,0.00027122,2]
[383674533,1757080277140,-835.85,0.00027122,2]
[383674534,1757080277150,-400.0,0.00027122,2]
[383674535,1757080277159,-400.0,0.00027122,2]
[383674536,1757080277168,-411.86601901,0.00027122,2]
[383674537,1757080277178,-298.0,0.00027122,2]
[383674538,1757080277188,-400.0,0.00027122,2]
[383674539,1757080277197,-1036.34,0.00027122,2]
[383674540,1757080277207,-733.05,0.00027122,2]
[383674541,1757080277217,-400.0,0.00027122,2]
[383674542,1757080277227,-1500.11,0.00027122,2]
[383674543,1757080277236,-400.0,0.00027122,2]
[383674544,1757080277246,-956.58,0.00027122,2]
[383674545,1757080277255,-400.0,0.00027122,2]
[383674546,1757080277265,-400.0,0.00027122,2]
[383674547,1757080277275,-400.0,0.00027122,2]
[383674548,1757080277284,-400.0,0.00027122,2]
[383674549,1757080277295,-400.0,0.00027122,2]
[383674550,1757080277305,-400.0,0.00027122,2]
[383674551,1757080277314,-400.0,0.00027122,2]
[383674552,1757080277323,-400.0,0.00027122,2]
[383674553,1757080277333,-180.1,0.00027122,2]
[383674554,1757080277343,-400.0,0.00027122,2]
[383674555,1757080277353,-400.0,0.00027122,2]
[383674556,1757080277364,-400.0,0.00027122,2]
[383674557,1757080277375,-400.0,0.00027122,2]
[383674558,1757080277385,-400.0,0.00027122,2]
[383674559,1757080277395,-463.62,0.00027122,2]
[383674560,1757080277405,-820.22,0.00027122,2]
[383674561,1757080277414,-400.0,0.00027122,2]
[383674562,1757080277423,-400.0,0.00027122,2]
[383674563,1757080277432,-400.0,0.00027122,2]
[383674564,1757080277442,-1070.14,0.00027122,2]
[383674565,1757080277452,-407.15,0.00027122,2]
[383674566,1757080277461,-400.0,0.00027122,2]
[383674567,1757080277471,-1861.07,0.00027122,2]
[383674568,1757080277481,-400.0,0.00027122,2]
[383674569,1757080277494,-241.37564564,0.00027122,2]
[383674570,1757080277507,-400.0,0.00027122,2]
[383674571,1757080277518,-400.0,0.00027123,2]
[383674572,1757080277529,-400.0,0.00027123,2]
[383674573,1757080277538,-400.0,0.00027123,2]